bitfinex-derivatives/quotes_SOLF0:USTF0_20250425
["timestamp","ask_amount","ask_price","bid_price","bid_amount"]
[1745542564963,5.18998221,152.37,152.34,6.5614]
[1745542567968,5.18998221,152.37,152.31,5.18998221]
[1745542568665,5.18998221,152.37,152.34,6.5612]
[1745542569469,5.18998221,152.37,152.31,5.18998221]
[1745542571470,5.18998221,152.37,152.34,6.5612]
[1745542573167,5.18998221,152.37,152.35,6.5609]
[1745542573366,28.62998221,152.39,152.33,5.18998221]
[1745542574665,28.62998221,152.39,152.37,6.5599]
[1745542582078,23.44,152.39,152.38,6.5597]
[1745542582782,26.33225,152.4,152.39,6.5593]
[1745542589283,26.33225,152.4,152.38,6.5596]
[1745542589483,5.18998221,152.39,152.38,6.5596]
[1745542589983,5.18998221,152.39,152.37,6.5599]
[1745542590184,5.18998221,152.39,152.34,5.8396]
[1745542593280,11.74938221,152.39,152.34,1.9515]
[1745542593583,5.18998221,152.35,152.29,9.05128221]
[1745542593984,5.18998221,152.35,152.33,6.5616]
[1745542597795,5.18998221,152.35,152.32,6.5623]
[1745542597980,5.18998221,152.33,152.29,3.8613]
[1745542598287,28.60998221,152.33,152.28,355.0]
[1745542598487,5.18998221,152.31,152.28,355.0]
[1745542598690,5.18998221,152.31,152.27,7.09878221]
[1745542598691,5.18998221,152.31,152.27,1.9088]
[1745542599989,5.18998221,152.31,152.28,6.5638]
[1745542602388,5.18998221,152.29,152.26,6.5646]
[1745542602590,23.42,152.29,152.26,6.5646]
[1745542602786,5.18998221,152.27,152.22,5.18998221]
[1745542603090,5.18998221,152.25,152.21,3.775]
[1745542603395,28.60998221,152.25,152.19,5.18998221]
[1745542604296,28.60998221,152.25,152.22,6.5663]
[1745542604591,28.60998221,152.25,152.19,5.18998221]
[1745542605092,28.60998221,152.25,152.22,6.5665]
[1745542607388,5.18998221,152.23,152.21,6.567]
[1745542607592,5.18998221,152.23,152.18,7.16168221]
[1745542607989,5.18998221,152.23,152.22,6.5666]
[1745542609898,28.60998221,152.25,152.2,5.18998221]
[1745542610399,28.60998221,152.25,152.22,6.5664]
[1745542615199,28.60998221,152.25,152.23,6.5662]
[1745542620698,35.17538221,152.25,152.21,6.5669]
[1745542620900,5.18998221,152.22,152.21,6.5669]
[1745542623101,5.18998221,152.22,152.2,6.5673]
[1745542625997,5.18998221,152.22,152.21,6.5671]
[1745542632215,5.18998221,152.24,152.18,7.16168221]
[1745542632406,5.18998221,152.24,152.2,5.18998221]
[1745542633114,23.42,152.25,152.2,5.18998221]
[1745542633309,28.62998221,152.28,152.22,5.18998221]
[1745542633506,28.62998221,152.28,152.27,6.5645]
[1745542633812,23.44,152.28,152.27,6.5645]
[1745542634011,5.18998221,152.3,152.24,5.18998221]
[1745542634212,5.18998221,152.3,152.28,6.5638]
[1745542634706,5.18998221,152.3,152.27,6.5645]
[1745542634912,5.18998221,152.3,152.24,5.18998221]
[1745542635411,5.18998221,152.3,152.26,6.5646]
[1745542636309,5.18998221,152.28,152.24,6.5654]
[1745542636509,28.60998221,152.28,152.22,28.62998221]
[1745542637312,28.60998221,152.28,152.25,6.565]
[1745542637611,28.60998221,152.28,152.22,28.62998221]
[1745542638513,28.60998221,152.28,152.25,6.565]
[1745542639916,28.60998221,152.28,152.22,28.62998221]
[1745542641015,28.60998221,152.28,152.25,6.5651]
[1745542641819,23.42,152.28,152.25,6.5651]
[1745542642019,28.60998221,152.28,152.26,6.5649]
[1745542644020,28.60998221,152.28,152.25,6.5652]
[1745542649816,28.60998221,152.28,152.22,28.62998221]
[1745542650015,5.18998221,152.24,152.21,4.0625]
[1745542650221,5.18998221,152.22,152.18,362.16168221]
[1745542650518,5.18998221,152.22,152.21,6.5671]
[1745542651020,5.18998221,152.22,152.18,7.16168221]
[1745542651221,5.18998221,152.22,152.19,6.5676]
[1745542651921,5.18998221,152.22,152.18,6.5683]
[1745542654225,11.75668221,152.22,152.18,6.5683]
[1745542656027,5.18998221,152.2,152.17,6.5687]
[1745542656226,28.60998221,152.2,152.17,6.5687]
[1745542658129,28.60998221,152.2,152.16,6.5691]
[1745542658524,28.60998221,152.2,152.15,3.8564]
[1745542659332,28.60998221,152.2,152.17,6.5684]
[1745542662230,28.60998221,152.2,152.18,6.5683]
[1745542662933,28.60998221,152.2,152.17,6.5686]
[1745542664634,5.18998221,152.18,152.17,6.5686]
[1745542667835,5.8781,152.27,152.16,5.18998221]
[1745542668036,5.18998221,152.24,152.18,5.18998221]
[1745542668538,5.18998221,152.24,152.21,6.5668]
[1745542669029,5.18998221,152.24,152.18,5.18998221]
[1745542669838,5.18998221,152.24,152.22,6.5664]
[1745542672939,5.18998221,152.24,152.21,6.5669]
[1745542673139,5.18998221,152.22,152.21,6.5669]
[1745542673342,28.60998221,152.22,152.17,5.18998221]
[1745542673836,5.18998221,152.18,152.15,3.8564]
[1745542674036,5.18998221,152.18,152.15,1.8946]
[1745542674238,5.18998221,152.18,152.16,6.5689]
[1745542674638,28.60998221,152.18,152.13,1.9956]
[1745542674838,29.9884,152.18,152.11,3.8906]
[1745542675043,23.42,152.21,152.16,5.18998221]
[1745542675243,23.42,152.21,152.18,5.18998221]
[1745542675945,23.42,152.21,152.16,5.18998221]
[1745542676139,23.42,152.21,152.19,6.5676]
[1745542676941,28.60998221,152.21,152.19,6.5676]
[1745542678145,28.60998221,152.21,152.2,6.5675]
[1745542679246,28.60998221,152.21,152.19,6.5678]
[1745542680546,28.60998221,152.21,152.18,6.5683]
[1745542682551,28.60998221,152.21,152.19,6.5678]
[1745542683251,23.42,152.21,152.2,6.5675]
[1745542684650,28.60998221,152.24,152.18,5.18998221]
[1745542685251,23.42,152.24,152.2,5.18998221]
[1745542685952,23.42,152.24,152.22,6.5662]
[1745542686656,23.42,152.24,152.23,6.5662]
[1745542687352,28.60998221,152.24,152.22,6.5665]
[1745542688959,28.60998221,152.24,152.23,6.5662]
[1745542689661,28.60998221,152.24,152.22,6.5665]
[1745542690960,28.60998221,152.24,152.21,6.5669]
[1745542691163,28.60998221,152.24,152.18,5.18998221]
[1745542692462,28.60998221,152.24,152.21,6.5668]
[1745542693862,28.60998221,152.24,152.22,6.5666]
[1745542696866,28.60998221,152.24,152.23,6.5662]
[1745542697962,28.60998221,152.24,152.22,6.5665]
[1745542706371,28.60998221,152.24,152.21,6.5669]
[1745542707170,28.60998221,152.24,152.22,6.5666]
[1745542708370,28.60998221,152.24,152.21,6.5669]
[1745542710074,28.60998221,152.24,152.22,6.5666]
[1745542710772,28.60998221,152.24,152.2,6.5672]
[1745542710975,28.60998221,152.24,152.18,5.18998221]
[1745542711267,28.60998221,152.24,152.16,5.18998221]
[1745542711268,5.18998221,152.22,152.16,5.18998221]
[1745542711469,5.18998221,152.22,152.15,5.18998221]
[1745542711880,11.75668221,152.22,152.18,6.5681]
[1745542712070,11.75668221,152.22,152.15,5.18998221]
[1745542712673,23.42,152.24,152.19,5.18998221]
[1745542713175,23.42,152.24,152.21,6.5668]
[1745542713875,23.42,152.24,152.22,6.5666]
[1745542714870,23.42,152.24,152.21,6.567]
[1745542715677,23.42,152.24,152.19,5.18998221]
[1745542718279,23.42,152.24,152.22,6.5663]
[1745542720579,23.42,152.24,152.19,5.18998221]
[1745542720580,23.42,152.24,152.23,6.5662]
[1745542724387,23.42,152.24,152.22,6.5665]
[1745542725082,23.42,152.24,152.19,5.18998221]
[1745542726680,23.42,152.24,152.22,6.5663]
[1745542727386,23.42,152.24,152.23,6.5662]
[1745542735296,23.42,152.24,152.19,5.18998221]
[1745542735793,5.18998221,152.23,152.21,6.567]
[1745542738297,5.18998221,152.23,152.2,6.5673]
[1745542739295,5.18998221,152.23,152.21,6.567]
[1745542739694,5.18998221,152.23,152.18,5.18998221]
[1745542739889,5.18998221,152.21,152.19,6.5679]
[1745542740395,5.18998221,152.21,152.15,5.18998221]
[1745542740585,5.18998221,152.19,152.15,5.18998221]
[1745542741799,5.18998221,152.19,152.17,6.5684]
[1745542743097,5.18998221,152.19,152.18,6.5684]
[1745542743298,28.60998221,152.2,152.15,5.18998221]
[1745542743993,23.42,152.2,152.17,5.18998221]
[1745542744401,5.18998221,152.22,152.17,5.18998221]
[1745542745299,5.18998221,152.22,152.2,6.5672]
[1745542749000,5.18998221,152.22,152.21,6.5671]
[1745542749602,23.42,152.23,152.22,6.5666]
[1745542750102,28.60998221,152.23,152.22,6.5666]
[1745542756304,28.60998221,152.23,152.21,6.5669]
[1745542756506,28.60998221,152.23,152.18,5.18998221]
[1745542756704,28.60998221,152.23,152.17,5.18998221]
[1745542756904,35.17638221,152.23,152.19,6.5676]
[1745542758209,35.17638221,152.23,152.2,6.5675]
[1745542762111,28.60998221,152.23,152.2,6.5675]
[1745542763911,35.17618221,152.23,152.2,6.5675]
[1745542766914,6.5666,152.22,152.19,6.5678]
[1745542767210,28.60998221,152.23,152.19,6.5678]
[1745542767413,35.17638221,152.23,152.2,6.5672]
[1745542773414,35.17638221,152.23,152.19,6.5677]
[1745542776412,35.17638221,152.23,152.2,6.5675]
[1745542780218,28.60998221,152.23,152.2,6.5675]
[1745542780818,28.60998221,152.23,152.21,6.567]
[1745542781013,28.60998221,152.23,152.17,5.18998221]
[1745542781014,23.42,152.23,152.19,5.18998221]
[1745542781218,23.42,152.26,152.21,5.18998221]
[1745542781615,23.42,152.26,152.24,6.5655]
[1745542783419,23.42,152.26,152.25,6.5653]
[1745542784218,23.42,152.26,152.24,6.5656]
[1745542789223,23.42,152.26,152.25,6.5653]
[1745542800435,23.42,152.26,152.24,6.5656]
[1745542800627,23.42,152.26,152.21,5.18998221]
[1745542801837,23.42,152.26,152.23,6.566]
[1745542802634,23.42,152.26,152.21,5.18998221]
[1745542802833,496.26,152.32,152.25,5.18998221]
[1745542803035,5.18998221,152.3,152.26,1.979]
[1745542803341,5.18998221,152.28,152.26,6.5649]
[1745542803640,5.18998221,152.28,152.22,23.4]
[1745542803837,5.18998221,152.3,152.23,5.18998221]
[1745542804041,5.18998221,152.28,152.23,1.9147]
[1745542804543,5.18998221,152.31,152.24,5.18998221]
[1745542804737,5.18998221,152.31,152.26,5.18998221]
[1745542804944,5.18998221,152.31,152.29,6.5635]
[1745542805145,23.4,152.32,152.29,6.5635]
[1745542805938,23.4,152.32,152.28,5.18998221]
[1745542806246,28.58998221,152.35,152.3,5.18998221]
[1745542806544,23.4,152.35,152.34,6.5615]
[1745542806749,23.4,152.35,152.32,5.18998221]
[1745542807245,23.4,152.35,152.33,6.5618]
[1745542807435,28.58998221,152.38,152.32,5.18998221]
[1745542807943,28.58998221,152.38,152.33,6.5618]
[1745542808743,28.58998221,152.38,152.34,6.5614]
[1745542809139,28.58998221,152.38,152.32,5.18998221]
[1745542809539,26.33225,152.4,152.36,5.18998221]
[1745542810344,5.18998221,152.39,152.35,5.18998221]
[1745542810743,5.18998221,152.39,152.36,6.5605]
[1745542812046,5.18998221,152.39,152.37,6.5601]
[1745542813142,5.18998221,152.39,152.33,11.10248221]
[1745542813449,5.18998221,152.37,152.34,6.5611]
[1745542813650,5.18998221,152.37,152.33,11.10248221]
[1745542814249,5.18998221,152.37,152.34,6.5614]
[1745542814442,5.18998221,152.37,152.33,11.10248221]
[1745542814645,5.18998221,152.39,152.35,5.18998221]
[1745542814845,26.33225,152.4,152.35,5.18998221]
[1745542815250,26.33225,152.4,152.37,6.5599]
[1745542816249,26.33225,152.4,152.38,6.5597]
[1745542817355,26.33225,152.4,152.39,6.5593]
[1745542819652,31.52223221,152.4,152.34,28.58998221]
[1745542819954,5.18998221,152.36,152.3,360.18998221]
[1745542820256,5.18998221,152.34,152.32,6.562]
[1745542820950,23.38,152.39,152.33,5.18998221]
[1745542821148,28.56998221,152.39,152.33,5.18998221]
[1745542821347,5.18998221,152.37,152.33,5.18998221]
[1745542821550,5.18998221,152.35,152.3,7.22438221]
[1745542821749,28.56998221,152.35,152.3,2.0344]
[1745542821955,28.56998221,152.35,152.32,6.5622]
[1745542822155,28.56998221,152.35,152.3,2.0344]
[1745542823152,5.18998221,152.33,152.27,9.24908221]
[1745542823454,5.18998221,152.31,152.27,9.24908221]
[1745542823658,28.56998221,152.31,152.25,5.18998221]
[1745542823860,5.18998221,152.29,152.23,34.50508221]
[1745542824356,5.18998221,152.27,152.23,34.50508221]
[1745542824662,5.18998221,152.27,152.23,5.9351]
[1745542824855,5.18998221,152.27,152.25,6.5649]
[1745542825157,5.18998221,152.27,152.23,5.9351]
[1745542825862,5.18998221,152.27,152.26,6.5649]
[1745542826565,5.18998221,152.29,152.26,6.5649]
[1745542826865,5.18998221,152.29,152.27,6.5644]
[1745542827066,23.38,152.31,152.26,5.18998221]
[1745542827666,23.38,152.31,152.28,6.5637]
[1745542827962,23.38,152.31,152.28,5.18998221]
[1745542828968,23.38,152.31,152.3,6.5632]
[1745542829369,5.18998221,152.33,152.28,5.18998221]
[1745542829570,5.18998221,152.33,152.31,6.5626]
[1745542829972,5.18998221,152.33,152.27,5.18998221]
[1745542830169,5.18998221,152.33,152.3,6.5631]
[1745542831070,5.18998221,152.31,152.3,6.5631]
[1745542832674,5.18998221,152.33,152.32,6.5621]
[1745542833673,5.18998221,152.33,152.31,6.5626]
[1745542833974,5.18998221,152.33,152.27,5.18998221]
[1745542834977,5.18998221,152.33,152.31,6.5624]
[1745542835177,5.18998221,152.33,152.27,5.18998221]
[1745542835871,23.38,152.34,152.27,5.18998221]
[1745542836080,5.18998221,152.33,152.27,5.18998221]
[1745542836578,5.18998221,152.33,152.31,6.5624]
[1745542839981,5.18998221,152.33,152.3,6.563]
[1745542840382,5.18998221,152.33,152.31,6.5626]
[1745542840982,5.18998221,152.33,152.24,23.38]
[1745542841182,5.18998221,152.3,152.24,28.56998221]
[1745542841382,28.56998221,152.3,152.24,28.56998221]
[1745542842276,28.56998221,152.3,152.29,6.5636]
[1745542845083,28.56998221,152.3,152.28,6.5639]
[1745542846083,28.56998221,152.3,152.29,6.5636]
[1745542846480,28.56998221,152.3,152.26,5.18998221]
[1745542846885,28.56998221,152.3,152.28,6.5638]
[1745542848487,28.56998221,152.3,152.27,6.5643]
[1745542848987,5.18998221,152.28,152.15,827.58]
[1745542849184,5.18998221,152.23,152.18,5.18998221]
[1745542850089,5.18998221,152.21,152.2,6.5672]
[1745542852383,5.18998221,152.22,152.2,6.5672]
[1745542853694,5.18998221,152.22,152.19,6.5678]
[1745542855197,5.18998221,152.22,152.2,6.5675]
[1745542856498,5.18998221,152.22,152.21,6.5671]
[1745542857099,5.18998221,152.22,152.2,6.5674]
[1745542858099,5.18998221,152.22,152.21,6.5671]
[1745542858298,5.18998221,152.24,152.2,5.18998221]
[1745542858598,28.58998221,152.25,152.2,5.18998221]
[1745542859699,5.18998221,152.23,152.18,5.18998221]
[1745542860703,5.18998221,152.21,152.16,34.61788221]
[1745542861202,5.18998221,152.21,152.19,6.5676]
[1745542861400,5.18998221,152.21,152.16,34.61788221]
[1745542862302,5.18998221,152.21,152.19,6.5676]
[1745542865203,28.58998221,152.21,152.19,6.5676]
[1745542865497,28.58998221,152.21,152.16,4.0397]
[1745542866002,28.58998221,152.21,152.18,6.5684]
[1745542866301,6.5675,152.2,152.16,4.0397]
[1745542866601,5.18998221,152.19,152.15,360.18998221]
[1745542867302,5.18998221,152.19,152.16,6.5691]
[1745542868104,11.75798221,152.19,152.16,6.5691]
[1745542868502,5.18998221,152.19,152.16,6.5691]
[1745542868798,28.58998221,152.21,152.14,5.18998221]
[1745542868999,28.58998221,152.21,152.16,5.18998221]
[1745542869702,23.4,152.21,152.18,5.18998221]
[1745542870202,23.4,152.21,152.19,6.5679]
[1745542870604,23.4,152.21,152.2,6.5675]
[1745542872308,28.58998221,152.24,152.18,5.18998221]
[1745542872500,23.4,152.24,152.22,5.18998221]
[1745542873195,23.4,152.24,152.23,6.5662]
[1745542873599,28.58998221,152.27,152.22,5.18998221]
[1745542874704,23.4,152.27,152.24,5.18998221]
[1745542874903,28.58998221,152.31,152.29,6.5635]
[1745542876604,28.58998221,152.31,152.28,6.5639]
[1745542877704,35.15278221,152.31,152.27,6.5644]
[1745542877907,35.15278221,152.31,152.24,5.18998221]
[1745542878905,35.15278221,152.31,152.26,5.18998221]
[1745542879306,35.15278221,152.31,152.27,6.5642]
[1745542879910,28.58998221,152.31,152.26,5.18998221]
[1745542881209,28.58998221,152.31,152.28,6.5637]
[1745542881812,28.58998221,152.31,152.29,6.5636]
[1745542882712,28.58998221,152.31,152.28,6.5639]
[1745542883109,28.58998221,152.31,152.26,5.18998221]
[1745542883913,23.4,152.31,152.28,5.18998221]
[1745542884412,5.18998221,152.33,152.31,6.5625]
[1745542884711,23.4,152.34,152.31,6.5625]
[1745542884913,23.4,152.34,152.32,6.5619]
[1745542885609,23.4,152.34,152.33,6.5619]
[1745542886613,496.42,152.37,152.35,6.5608]
[1745542886807,472.86,152.44,152.34,5.18998221]
[1745542887003,49.73225,152.4,152.39,6.5593]
[1745542887309,26.33225,152.4,152.39,6.5593]
[1745542901016,472.52,152.51,152.39,8.13971003]
[1745542901218,31.51971003,152.5,152.39,8.13971003]
[1745542901520,6.5556,152.48,152.44,6.5569]
[1745542902119,6.5551,152.49,152.45,6.5566]
[1745542902319,23.38,152.5,152.41,31.51971003]
[1745542902814,29.9348,152.5,152.46,6.5562]
[1745542903316,23.38,152.5,152.43,8.13971003]
[1745542903521,23.38,152.5,152.41,23.38]
[1745542903522,23.38,152.5,152.45,8.13971003]
[1745542904217,23.38,152.5,152.49,6.555]
[1745542904417,23.38,152.5,152.45,8.13971003]
[1745542904717,23.38,152.5,152.48,6.5554]
[1745542904918,23.38,152.5,152.43,8.13971003]
[1745542905614,23.38,152.5,152.42,356.9843]
[1745542906222,6.5551,152.49,152.44,6.5571]
[1745542906426,8.13971003,152.49,152.42,356.9843]
[1745542906821,8.13971003,152.49,152.42,1.9843]
[1745542907026,8.13971003,152.49,152.43,6.5573]
[1745542907824,6.5557,152.48,152.43,6.5573]
[1745542908025,6.5557,152.48,152.44,6.557]
[1745542908525,6.5557,152.48,152.42,1.9843]
[1745542908828,6.5557,152.48,152.44,6.557]
[1745542909527,6.5557,152.48,152.42,1.9843]
[1745542909528,14.69481003,152.49,152.45,6.5567]
[1745542912332,23.38,152.5,152.42,1.9843]
[1745542912827,23.38,152.5,152.43,8.13971003]
[1745542913135,23.38,152.5,152.47,6.5556]
[1745542914631,23.38,152.5,152.48,6.5553]
[1745542915237,23.38,152.5,152.49,6.555]
[1745542915433,23.38,152.5,152.43,8.13971003]
[1745542916238,23.38,152.5,152.48,6.5551]
[1745542917532,23.38,152.5,152.49,6.555]
[1745542918735,23.38,152.5,152.48,6.5554]
[1745542920235,29.9348,152.5,152.47,6.5557]
[1745542921845,23.38,152.5,152.47,6.5557]
[1745542922042,23.38,152.5,152.48,6.5554]
[1745542923345,23.38,152.5,152.47,6.5558]
[1745542923941,23.38,152.5,152.47,6.5556]
[1745542924242,11.75893937,152.49,152.42,27.3817]
[1745542924439,5.20393937,152.47,152.42,30.56823937]
[1745542924743,5.20393937,152.45,152.4,5.20393937]
[1745542924943,5.20393937,152.45,152.43,6.5572]
[1745542925340,23.36,152.46,152.43,6.5572]
[1745542925641,23.36,152.46,152.44,6.557]
[1745542925940,23.36,152.46,152.41,8.13723571]
[1745542926146,23.36,152.49,152.46,6.5562]
[1745542928550,23.36,152.49,152.47,6.5558]
[1745542928748,23.36,152.49,152.41,8.13723571]
[1745542929142,23.36,152.49,152.45,6.5564]
[1745542929548,29.9151,152.49,152.45,6.5564]
[1745542929748,23.36,152.49,152.46,6.556]
[1745542930350,23.36,152.49,152.41,8.13723571]
[1745542931148,23.36,152.49,152.48,6.5554]
[1745542933149,25.2974,152.52,152.51,6.5541]
[1745542933345,23.36,152.52,152.51,6.5541]
[1745542935150,23.36,152.55,152.49,8.13723571]
[1745542937346,23.36,152.55,152.48,1.9551]
[1745542937550,23.36,152.55,152.48,10.09233571]
[1745542938153,23.36,152.55,152.53,6.5532]
[1745542938352,23.36,152.55,152.48,10.09233571]
[1745542938552,23.36,152.55,152.47,23.36]
[1745542939055,29.9127,152.55,152.47,23.36]
[1745542939553,6.5529,152.54,152.47,23.36]
[1745542939950,23.36,152.55,152.47,23.36]
[1745542940250,6.553,152.54,152.5,6.5543]
[1745542940450,6.553,152.54,152.47,23.36]
[1745542942250,29.9126,152.55,152.47,23.36]
[1745542942552,23.36,152.55,152.47,23.36]
[1745542942954,8.13723571,152.54,152.45,355.0]
[1745542943354,6.5538,152.52,152.49,6.555]
[1745542943554,23.36,152.51,152.49,6.555]
[1745542943853,23.36,152.51,152.45,355.0]
[1745542945456,23.36,152.51,152.49,6.5549]
[1745542946357,23.36,152.51,152.5,6.5546]
[1745542946553,23.36,152.54,152.48,8.13723571]
[1745542946757,23.36,152.54,152.48,31.49723571]
[1745542946958,23.36,152.54,152.53,6.5533]
[1745542949958,23.36,152.57,152.53,6.5533]
[1745542950560,23.36,152.57,152.54,6.5528]
[1745542951259,29.9116,152.57,152.54,6.5528]
[1745542951952,29.9116,152.57,152.53,6.5531]
[1745542953061,23.36,152.57,152.52,6.5536]
[1745542953262,25.2411,152.57,152.49,2.033]
[1745542953657,8.12577279,152.56,152.51,6.5541]
[1745542954464,25.2411,152.57,152.49,2.033]
[1745542955458,6.552,152.56,152.53,6.5532]
[1745542955668,25.2411,152.57,152.49,2.033]
[1745542956465,31.7929,152.57,152.53,6.553]
[1745542956666,25.2411,152.57,152.5,8.12577279]
[1745542957467,25.2411,152.57,152.54,6.5526]
[1745542959269,31.7927,152.57,152.54,6.5526]
[1745542961474,472.04,152.68,152.54,8.12577279]
[1745542961675,10.15457279,152.66,152.56,8.12577279]
[1745542961973,6.5488,152.64,152.59,6.5506]
[1745542962174,23.36,152.63,152.59,6.5506]
[1745542962474,29.909,152.63,152.58,6.551]
[1745542963073,29.909,152.63,152.54,8.12577279]
[1745542963574,29.909,152.63,152.58,6.5508]
[1745542964073,29.909,152.63,152.54,8.12577279]
[1745542966174,29.909,152.63,152.59,6.5504]
[1745542967273,8.12577279,152.62,152.52,23.36]
[1745542967475,9.98617279,152.62,152.52,23.36]
[1745542967673,8.12577279,152.57,152.49,359.0519]
[1745542967877,8.12577279,152.55,152.47,23.34]
[1745542968073,23.34,152.54,152.46,8.12577279]
[1745542968376,23.34,152.54,152.45,355.0]
[1745542969674,23.34,152.54,152.46,8.12577279]
[1745542971283,23.34,152.54,152.51,6.5539]
[1745542972177,29.8929,152.54,152.46,8.12577279]
[1745542972582,23.34,152.54,152.51,6.5541]
[1745542974382,23.34,152.54,152.46,8.12577279]
[1745542974586,23.34,152.54,152.52,6.5537]
[1745542976383,23.34,152.54,152.53,6.5533]
[1745542977593,23.34,152.57,152.5,8.12577279]
[1745542979295,23.34,152.57,152.54,6.5525]
[1745542979796,23.34,152.57,152.49,4.0595]
[1745542979997,31.46577279,152.57,152.52,6.5533]
[1745542980296,6.5523,152.56,152.52,6.5533]
[1745542981298,6.5523,152.56,152.53,6.5532]
[1745542982100,6.5523,152.56,152.52,6.5536]
[1745542982301,6.5525,152.55,152.52,6.5536]
[1745542982491,31.46577279,152.57,152.52,6.5536]
[1745542982897,6.5522,152.56,152.53,6.5533]
[1745542983597,8.12577279,152.55,152.46,8.12577279]
[1745542983791,8.12577279,152.51,152.45,355.0]
[1745542984099,23.34,152.5,152.46,6.556]
[1745542984302,29.8949,152.5,152.46,6.556]
[1745542984899,23.34,152.5,152.47,6.5558]
[1745542985402,23.34,152.5,152.49,6.555]
[1745542985899,2.0278,152.58,152.43,23.34]
[1745542985900,23.34,152.53,152.48,8.12577279]
[1745542986099,23.34,152.53,152.52,6.5535]
[1745542986491,23.34,152.53,152.51,6.554]
[1745542987295,23.34,152.53,152.52,6.5537]
[1745542989706,23.34,152.53,152.46,8.12577279]
[1745542990707,23.34,152.53,152.52,6.5537]
[1745542992013,23.34,152.56,152.54,6.5528]
[1745542992314,23.34,152.56,152.5,8.12577279]
[1745542992508,23.34,152.56,152.51,2.0207]
[1745542992705,23.34,152.56,152.55,6.5524]
[1745542995613,23.34,152.6,152.58,6.5511]
[1745542997312,23.34,152.6,152.52,10.07677279]
[1745542997814,23.34,152.6,152.57,6.5515]
[1745542998112,23.34,152.6,152.52,10.07677279]
[1745542998412,23.34,152.6,152.57,6.5513]
[1745542998612,23.34,152.6,152.52,10.07677279]
[1745542999512,23.34,152.61,152.54,8.12577279]
[1745543000513,23.34,152.61,152.6,6.5503]
[1745543005019,29.8887,152.64,152.6,6.5503]
[1745543005319,29.8887,152.64,152.61,6.5498]
[1745543005814,29.8887,152.64,152.56,8.12577279]
[1745543005815,29.8887,152.64,152.6,6.5501]
[1745543006022,6.5492,152.63,152.6,6.5501]
[1745543007119,6.5495,152.62,152.58,6.5508]
[1745543007420,8.12577279,152.61,152.52,10.07677279]
[1745543007620,23.34,152.6,152.52,10.07677279]
[1745543007820,6.5508,152.59,152.56,6.5519]
[1745543010621,6.5508,152.59,152.55,6.5523]
[1745543011219,23.34,152.6,152.52,10.07677279]
[1745543011220,6.5512,152.58,152.52,1.951]
[1745543011421,25.2342,152.6,152.52,10.07677279]
[1745543011721,31.7845,152.6,152.52,10.07677279]
[1745543012024,31.7845,152.6,152.56,6.5518]
[1745543012326,204.003369,152.77,152.57,23.34]
[1745543012624,235.46914179,152.77,152.7,6.5459]
[1745543012817,6.5439,152.75,152.7,6.5459]
[1745543013122,235.46914179,152.77,152.7,6.5459]
[1745543013423,5.18779319,152.75,152.7,6.5459]
[1745543013619,5.18779319,152.75,152.71,6.5455]
[1745543014115,5.18779319,152.75,152.7,6.5459]
[1745543014620,5.18779319,152.71,152.66,5.18779319]
[1745543014821,5.18779319,152.71,152.68,6.5465]
[1745543015020,5.18779319,152.71,152.66,5.18779319]
[1745543015325,23.34,152.72,152.65,2.0]
[1745543015326,23.34,152.72,152.68,6.5465]
[1745543019528,29.8855,152.72,152.67,6.5469]
[1745543019924,29.8855,152.72,152.65,2.0]
[1745543020429,29.8855,152.72,152.67,6.5472]
[1745543020722,8.10835801,152.71,152.61,31.42835801]
[1745543020929,9.97175801,152.71,152.61,31.42835801]
[1745543021227,16.51745801,152.71,152.61,31.42835801]
[1745543021818,16.51745801,152.71,152.66,6.5473]
[1745543022526,29.8853,152.72,152.63,8.10835801]
[1745543022828,23.34,152.72,152.63,8.10835801]